bitfinex/quotes_BTCUSD_20220201
["timestamp","ask_amount","ask_price","bid_price","bid_amount"]
[1643693305538,0.85,38530.0,38523.0,0.00602027]
[1643693305804,0.136731,38531.0,38523.0,0.00602027]
[1643693305805,0.064907,38528.0,38523.0,0.00602027]
[1643693306001,0.30519348,38527.0,38523.0,0.00602027]
[1643693306199,0.086731,38527.0,38523.0,0.0011]
[1643693306400,0.749226,38524.0,38523.0,0.0011]
[1643693306601,0.93798276,38524.0,38523.0,0.0011]
[1643693306802,1.3335024,38524.0,38523.0,0.0011]
[1643693307099,1.47675937,38524.0,38523.0,0.0011]
[1643693308401,1.57675937,38524.0,38523.0,0.0011]
[1643693308801,1.62675937,38524.0,38523.0,0.0011]
[1643693309631,1.62675937,38524.0,38516.0,0.00600381]
[1643693309632,0.27994388,38517.0,38516.0,0.00600381]
[1643693310433,0.27994388,38517.0,38511.0,0.01896602]
[1643693310636,0.10020639,38516.0,38511.0,0.01896602]
[1643693312234,0.10020639,38516.0,38510.0,0.064915]
[1643693312936,0.10020639,38516.0,38509.0,0.002]
[1643693313981,0.10020639,38516.0,38511.0,0.00149365]
[1643693314281,0.27994388,38517.0,38511.0,0.00149365]
[1643693314882,0.27994388,38517.0,38510.0,0.064912]
[1643693315083,0.27994388,38517.0,38512.0,0.00149359]
[1643693315283,0.3759722,38517.0,38512.0,0.00149359]
[1643693316087,0.3759722,38517.0,38510.0,0.064912]
[1643693316284,0.3759722,38517.0,38513.0,0.00149357]
[1643693316484,0.27994388,38517.0,38513.0,0.06640157]
[1643693316685,0.83381461,38524.0,38513.0,0.06640157]
[1643693316886,0.1,38523.0,38513.0,0.06640157]
[1643693317137,0.20326662,38522.0,38513.0,0.06640157]
[1643693317340,0.94320647,38524.0,38513.0,0.064908]
[1643693317537,0.94320647,38524.0,38516.0,0.00149344]
[1643693317538,0.08941126,38520.0,38516.0,0.00149344]
[1643693318540,0.28600907,38523.0,38516.0,0.00149344]
[1643693319740,0.28600907,38523.0,38513.0,0.064908]
[1643693319943,0.08537477,38521.0,38518.0,0.00149338]
[1643693320884,0.08537477,38521.0,38513.0,0.064908]
[1643693321085,0.28600907,38523.0,38518.0,0.00149338]
[1643693322082,0.28600907,38523.0,38515.0,0.064904]
[1643693322284,0.28600907,38523.0,38519.0,0.00149334]
[1643693323287,0.28600907,38523.0,38516.0,0.09290398]
[1643693323486,0.28600907,38523.0,38519.0,0.00149332]
[1643693324536,0.28600907,38523.0,38517.0,0.064901]
[1643693324738,0.28600907,38523.0,38519.0,0.00149332]
[1643693325636,0.28600907,38523.0,38517.0,0.064901]
[1643693325837,0.28600907,38523.0,38519.0,0.00149332]
[1643693327038,0.28600907,38523.0,38517.0,0.064901]
[1643693327239,0.28600907,38523.0,38519.0,0.00149332]
[1643693328295,0.28600907,38523.0,38515.0,0.064904]
[1643693328485,0.28600907,38523.0,38519.0,0.00149332]
[1643693329284,0.27909287,38523.0,38515.0,0.064904]
[1643693329484,0.27909287,38523.0,38519.0,0.00116479]
[1643693330488,0.27909287,38523.0,38515.0,0.064904]
[1643693330688,0.27909287,38523.0,38519.0,0.00116479]
[1643693331693,0.27909287,38523.0,38515.0,0.064904]
[1643693331896,0.27909287,38523.0,38519.0,0.00116479]
[1643693332935,0.27909287,38523.0,38515.0,0.064904]
[1643693333131,0.27909287,38523.0,38519.0,0.0014875]
[1643693333732,0.74104234,38524.0,38519.0,0.0014875]
[1643693334134,0.74104234,38524.0,38515.0,0.50212448]
[1643693334334,0.74104234,38524.0,38520.0,0.00148748]
[1643693334534,0.66189306,38524.0,38520.0,0.00148748]
[1643693335333,0.66189306,38524.0,38517.0,0.064901]
[1643693335790,0.66189306,38524.0,38520.0,0.00148746]
[1643693336584,0.66189306,38524.0,38515.0,0.50212448]
[1643693336883,0.66189306,38524.0,38520.0,0.00116604]
[1643693337686,0.064904,38526.0,38520.0,0.00116604]
[1643693337885,0.7975,38528.0,38516.0,0.43722048]
[1643693338089,0.8475,38528.0,38520.0,0.00116604]
[1643693338486,0.4232,38528.0,38520.0,0.00116604]
[1643693338685,0.24950041,38527.0,38520.0,0.00116604]
[1643693339088,0.24883919,38527.0,38518.0,0.2253565]
[1643693339287,0.09620937,38526.0,38520.0,0.00116604]
[1643693339539,0.09620937,38526.0,38522.0,0.064891]
[1643693340342,0.09620937,38526.0,38520.0,0.00149328]
[1643693340746,0.25097164,38524.0,38520.0,0.00149328]
[1643693340946,0.25097164,38524.0,38520.0,0.06639128]
[1643693341346,0.25097164,38524.0,38520.0,0.064898]
[1643693341645,0.25097164,38524.0,38520.0,0.06639128]
[1643693342644,0.09620937,38526.0,38520.0,0.064898]
[1643693342845,0.09620937,38526.0,38520.0,0.06639128]
[1643693343682,0.34746778,38526.0,38520.0,0.06639128]
[1643693343883,0.34746778,38526.0,38520.0,0.064898]
[1643693344084,0.34746778,38526.0,38520.0,0.06639128]
[1643693344985,0.34746778,38526.0,38521.0,0.20408958]
[1643693345485,0.34746778,38526.0,38522.0,0.064896]
[1643693345685,0.09620937,38526.0,38522.0,0.064896]
[1643693346086,0.11845614,38529.0,38523.0,0.19094002]
[1643693346288,0.31430947,38530.0,38523.0,0.19094002]
[1643693346587,0.00165617,38529.0,38525.0,0.064891]
[1643693347436,0.25693016,38529.0,38525.0,0.064891]
[1643693347637,0.09213799,38528.0,38525.0,0.064891]
[1643693348544,0.09213799,38528.0,38520.0,0.35127834]
[1643693348738,0.09213799,38528.0,38520.0,0.129785]
[1643693348939,0.09213799,38528.0,38521.0,0.18887375]
[1643693349941,0.09213799,38528.0,38521.0,0.25377075]
[1643693354285,0.30858634,38529.0,38521.0,0.25377075]
[1643693354540,0.30693016,38529.0,38521.0,0.25377075]
[1643693354739,0.25693016,38529.0,38521.0,0.25377075]
[1643693354940,0.25858634,38529.0,38521.0,0.25377075]
[1643693355240,0.25858634,38529.0,38522.0,0.18780627]
[1643693355439,0.25858634,38529.0,38521.0,0.064897]
[1643693355639,0.25858634,38529.0,38522.0,0.18828874]
[1643693355840,0.25858634,38529.0,38519.0,0.0649]
[1643693356041,0.25858635,38529.0,38520.0,0.19733436]
[1643693356240,0.32348735,38529.0,38520.0,0.19733436]
[1643693356443,0.38838835,38529.0,38520.0,0.00149328]
[1643693356640,0.38838835,38529.0,38520.0,0.19215065]
[1643693357040,0.38673216,38529.0,38520.0,0.19065737]
[1643693357241,0.38823637,38529.0,38520.0,0.19215065]
[1643693358287,0.38673216,38529.0,38520.0,0.19065737]
[1643693358487,0.38814306,38529.0,38520.0,0.19196399]
[1643693358689,0.08965348,38522.0,38520.0,0.19196399]
[1643693359488,0.08965348,38522.0,38520.0,0.19065737]
[1643693359688,0.08965348,38522.0,38519.0,0.06620666]
[1643693359889,0.08965348,38522.0,38520.0,0.1944269]
[1643693360693,0.08965348,38522.0,38520.0,0.187962]
[1643693362937,0.22075501,38525.0,38520.0,0.187962]
[1643693363938,0.07475193,38526.0,38520.0,0.187962]
[1643693364541,0.12170322,38529.0,38520.0,0.45703407]
[1643693364738,0.12170322,38529.0,38520.0,0.26907207]
[1643693364938,0.24135331,38527.0,38520.0,0.06639128]
[1643693365439,0.24135331,38527.0,38520.0,0.064898]
[1643693365637,0.33721856,38527.0,38520.0,0.06639128]
[1643693366693,0.33721856,38527.0,38521.0,0.19963751]
[1643693367095,0.33721856,38527.0,38520.0,0.06639128]
[1643693367291,0.33721856,38527.0,38521.0,0.18905601]
[1643693367491,0.33721856,38527.0,38520.0,0.06639128]
[1643693367892,0.33221856,38527.0,38520.0,0.064898]
[1643693368293,0.33221856,38527.0,38520.0,0.06639128]
[1643693368895,0.33221856,38527.0,38520.0,0.00149328]
[1643693369098,0.33221856,38527.0,38518.0,0.19646219]
[1643693369536,0.33221856,38527.0,38520.0,0.00130662]
[1643693370138,0.39712156,38527.0,38520.0,0.00130662]
[1643693370339,0.39712156,38527.0,38519.0,0.064901]
[1643693370540,0.39712156,38527.0,38520.0,0.19928511]
[1643693371238,0.29174491,38524.0,38520.0,0.19928511]
[1643693371637,0.29174491,38524.0,38520.0,0.19797849]
[1643693371838,0.29174491,38524.0,38520.0,0.00130662]
[1643693372039,0.29174491,38524.0,38520.0,0.19036073]
[1643693372243,0.33221856,38527.0,38520.0,0.19177412]
[1643693372438,0.33221856,38527.0,38520.0,0.00130662]
[1643693372640,0.33221856,38527.0,38519.0,0.064901]
[1643693372841,0.33221856,38527.0,38520.0,0.00120583]
[1643693373993,0.2621337,38526.0,38520.0,0.18956953]
[1643693374193,0.2621337,38526.0,38520.0,0.00120583]
[1643693375193,0.33221856,38527.0,38519.0,0.064901]
[1643693375494,0.33221856,38527.0,38520.0,0.00120583]
[1643693376394,0.2810719,38526.0,38519.0,0.064901]
[1643693376595,0.2810719,38526.0,38520.0,0.00148725]
[1643693377036,0.2810719,38526.0,38520.0,0.18992871]
[1643693377236,0.2810719,38526.0,38520.0,0.00148725]
[1643693377439,0.2810719,38526.0,38519.0,0.064901]
[1643693377636,0.2810719,38526.0,38520.0,0.00148725]
[1643693378737,0.2810719,38526.0,38519.0,0.064901]
[1643693378937,0.2810719,38526.0,38520.0,0.00148725]
[1643693379941,0.2810719,38526.0,38519.0,0.064901]
[1643693380139,0.2810719,38526.0,38520.0,0.00149328]
[1643693381187,0.2810719,38526.0,38519.0,0.064901]
[1643693381385,0.2810719,38526.0,38520.0,0.00149328]
[1643693382285,0.2810719,38526.0,38519.0,0.064901]
[1643693382489,0.2810719,38526.0,38520.0,0.00149328]
[1643693383587,0.2810719,38526.0,38519.0,0.064901]
[1643693383786,0.2810719,38526.0,38520.0,0.00149328]
[1643693384738,0.2810719,38526.0,38519.0,0.064901]
[1643693384939,0.2810719,38526.0,38520.0,0.00149328]
[1643693385941,0.2810719,38526.0,38518.0,0.18880726]
[1643693386142,0.3310719,38526.0,38516.0,0.7498616]
[1643693386347,0.3310719,38526.0,38520.0,0.00149328]
[1643693387144,0.3310719,38526.0,38518.0,0.18939078]
[1643693387343,0.3310719,38526.0,38520.0,0.00116476]
[1643693388405,0.3310719,38526.0,38518.0,0.064903]
[1643693388605,0.3310719,38526.0,38520.0,0.00116476]
[1643693389607,0.3310719,38526.0,38519.0,0.064901]
[1643693389806,0.3310719,38526.0,38520.0,0.00116476]
[1643693390707,0.33100866,38526.0,38519.0,0.064901]
[1643693390905,0.33100866,38526.0,38520.0,0.00149328]
[1643693391106,0.33100866,38526.0,38519.0,0.06139428]
[1643693391908,0.2810719,38526.0,38519.0,0.06139428]
[1643693392549,0.3445078,38521.0,38519.0,0.06139428]
[1643693392853,0.3445078,38521.0,38517.0,0.064905]
[1643693393048,0.3445078,38521.0,38518.0,0.349226]
[1643693393652,0.29265599,38520.0,38518.0,0.349226]
[1643693393850,0.29265599,38520.0,38517.0,0.349226]
[1643693394051,0.3445078,38521.0,38517.0,0.349226]
[1643693394650,0.3445078,38521.0,38517.0,0.35071195]
[1643693395555,0.3445078,38521.0,38517.0,0.349226]
[1643693395796,0.08601846,38521.0,38517.0,0.35071193]
[1643693396591,0.08601846,38521.0,38518.0,0.064901]
[1643693396792,0.08601846,38521.0,38519.0,0.349226]
[1643693397591,0.29166174,38523.0,38518.0,0.064901]
[1643693398096,0.29166174,38523.0,38518.0,0.06638689]
[1643693399090,0.29166174,38523.0,38518.0,0.064901]
[1643693399290,0.29166174,38523.0,38518.0,0.06608972]
[1643693399739,0.08067776,38522.0,38518.0,0.00118872]
[1643693400339,0.08067776,38522.0,38516.0,0.064904]
[1643693400540,0.08067776,38522.0,38518.0,0.00118872]
[1643693400743,0.29166174,38523.0,38518.0,0.00118872]
[1643693401038,0.35103788,38524.0,38518.0,0.00118872]
[1643693401640,0.34953202,38524.0,38516.0,0.064904]
[1643693401840,0.39413514,38521.0,38518.0,0.00118872]
[1643693402740,0.39413514,38521.0,38514.0,0.064907]
[1643693403888,0.39413514,38521.0,38515.0,0.349226]
[1643693404089,0.39413514,38521.0,38516.0,0.06638799]
[1643693404489,0.29938501,38520.0,38516.0,0.00148599]
[1643693405093,0.29930605,38520.0,38515.0,0.064905]
[1643693405292,0.29930605,38520.0,38516.0,0.00148597]
[1643693406094,0.29930605,38520.0,38516.0,0.06638897]
[1643693406295,0.07944224,38521.0,38516.0,0.06638897]
[1643693406494,0.1205,38525.0,38517.0,0.349226]
[1643693406696,0.0016221,38524.0,38516.0,0.06638897]
[1643693407349,0.23603797,38522.0,38516.0,0.06638897]
[1643693407550,0.23603797,38522.0,38516.0,0.064903]
[1643693407749,0.09180951,38521.0,38518.0,0.00148589]
[1643693408750,0.09180951,38521.0,38516.0,0.064903]
[1643693408949,0.09180951,38521.0,38518.0,0.00148591]
[1643693409350,0.09180951,38521.0,38520.0,0.19772728]
[1643693413093,0.00165444,38524.0,38520.0,0.19772728]
[1643693413494,0.22165213,38527.0,38520.0,0.19772728]
[1643693413698,0.31430947,38530.0,38520.0,0.19772728]
[1643693413894,0.00165446,38524.0,38520.0,0.26262828]
[1643693414095,0.00165446,38524.0,38521.0,0.30867259]
[1643693414296,0.00165446,38524.0,38521.0,0.36707433]
[1643693414837,0.36995208,38528.0,38522.0,0.26262028]
[1643693415237,0.00165445,38524.0,38522.0,0.26262028]
[1643693415939,0.36995208,38528.0,38522.0,0.26262028]
[1643693416242,0.00165444,38525.0,38522.0,0.26262028]
[1643693417338,0.36995208,38528.0,38522.0,0.26262028]
[1643693417539,0.00165443,38525.0,38522.0,0.26262028]
[1643693418140,0.00165443,38525.0,38522.0,0.25762028]
[1643693418386,0.27885358,38528.0,38522.0,0.25762028]
[1643693418791,0.00160278,38525.0,38522.0,0.25762028]
[1643693419589,0.27885358,38528.0,38522.0,0.25762028]
[1643693419789,0.27885358,38528.0,38522.0,0.064893]
[1643693420090,0.00160278,38525.0,38524.0,0.06489]
[1643693420889,0.02121588,38528.0,38524.0,0.06489]
[1643693421090,0.00160276,38526.0,38524.0,0.06489]
[1643693421490,0.00160276,38526.0,38524.0,0.25662829]
[1643693421693,0.00160276,38526.0,38525.0,0.20058245]
[1643693422148,0.02121588,38528.0,38526.0,0.064883]
[1643693422347,0.00162107,38528.0,38527.0,0.56614344]
[1643693422548,0.00162107,38528.0,38527.0,0.68155344]
[1643693422746,0.00162107,38528.0,38527.0,0.97113867]
[1643693422947,0.00162107,38528.0,38527.0,1.07506428]
[1643693423345,0.0017,38532.0,38527.0,1.05546947]
[1643693423547,0.0017,38532.0,38531.0,0.67762203]
[1643693423748,0.0017,38532.0,38531.0,0.72762203]
[1643693424845,0.0017,38532.0,38531.0,0.9662216]
[1643693425050,0.0017,38532.0,38531.0,1.15894888]
[1643693425649,0.0017,38532.0,38531.0,0.65681728]
[1643693426692,0.0017,38532.0,38531.0,0.96779577]
[1643693426892,0.0017,38532.0,38531.0,0.8758412]
[1643693428194,0.0017,38532.0,38531.0,1.18788967]
[1643693428594,0.0017,38532.0,38531.0,1.36074495]
[1643693433890,0.0017,38532.0,38531.0,1.14172103]
[1643693434690,0.0017,38532.0,38531.0,0.82967256]
[1643693435093,0.0017,38532.0,38531.0,0.65681728]
[1643693435990,0.0017,38532.0,38531.0,0.74816108]
[1643693436389,0.0017,38532.0,38531.0,0.92101636]
[1643693440643,0.0017,38532.0,38531.0,0.77967256]
[1643693440904,0.0017,38532.0,38531.0,0.93083958]
[1643693441101,0.0017,38532.0,38531.0,0.19272728]
[1643693441900,0.0017,38532.0,38531.0,0.54195328]
[1643693444101,0.0017,38532.0,38531.0,0.73007379]
[1643693445347,0.00159294,38532.0,38531.0,0.73007379]
[1643693446148,0.00159294,38532.0,38531.0,0.54195328]
[1643693447449,0.00159294,38532.0,38531.0,0.19272728]
[1643693448299,0.00159294,38532.0,38531.0,0.73844518]
[1643693448490,0.00159294,38532.0,38531.0,0.7382136]
[1643693450591,0.00159294,38532.0,38531.0,0.83959235]
[1643693451194,0.00159294,38532.0,38531.0,0.64333203]
[1643693451893,0.00159294,38532.0,38531.0,0.83788192]
[1643693452543,0.00159294,38532.0,38531.0,0.54195328]
[1643693453243,0.00159294,38532.0,38531.0,0.73713287]
[1643693454647,0.00159294,38532.0,38531.0,0.84116295]
[1643693454853,0.00159294,38532.0,38531.0,0.89116295]
[1643693464687,0.00159294,38532.0,38531.0,0.99116295]
[1643693465087,0.00159294,38532.0,38531.0,1.16351903]
[1643693465689,0.00159294,38532.0,38531.0,1.11351903]
[1643693465890,0.00159294,38532.0,38531.0,1.16351903]
[1643693466890,0.00159294,38532.0,38531.0,1.21541903]
[1643693467341,0.02002436,38537.0,38532.0,0.30271413]
[1643693467542,0.02002436,38537.0,38536.0,0.349226]
[1643693467543,0.00086594,38537.0,38536.0,0.349226]
[1643693467747,0.00086594,38537.0,38536.0,3.18107054]
[1643693467948,0.00086594,38537.0,38536.0,3.39194764]
[1643693468143,0.00086594,38537.0,38536.0,3.56430372]
[1643693468342,0.00086594,38537.0,38536.0,3.86169543]
[1643693468742,0.00086594,38537.0,38536.0,4.0629354]
[1643693468942,0.00086594,38537.0,38536.0,2.7527804]
[1643693469943,0.00086594,38537.0,38536.0,2.55154043]
[1643693470796,0.00086594,38537.0,38536.0,3.92654043]
[1643693470990,0.00086594,38537.0,38536.0,4.1277804]
[1643693471391,0.00086594,38537.0,38536.0,2.7527804]
[1643693471991,0.00086594,38537.0,38536.0,2.55154043]
[1643693472793,0.00151953,38538.0,38536.0,3.90738201]
[1643693472995,0.3137494,38550.0,38537.0,2.25122884]
[1643693473197,0.3137494,38550.0,38545.0,0.09435164]
[1643693473394,0.3137494,38550.0,38546.0,0.064844]
[1643693474196,0.3137494,38550.0,38547.0,0.349226]
[1643693474641,0.00151858,38549.0,38547.0,0.349226]
[1643693475041,0.00151858,38549.0,38547.0,0.53599461]
[1643693475441,0.03934201,38550.0,38547.0,0.58789461]
[1643693475852,0.00137691,38549.0,38547.0,0.58789461]
[1643693476543,0.00137691,38549.0,38547.0,0.63789461]
[1643693476743,0.03934201,38550.0,38547.0,0.58789461]
[1643693476944,0.00137709,38549.0,38547.0,0.58789461]
[1643693477943,0.03934201,38550.0,38547.0,0.58789461]
[1643693478143,0.00137709,38549.0,38547.0,0.58789461]
[1643693478694,0.00137709,38549.0,38547.0,0.78062189]
[1643693479094,0.03934201,38550.0,38547.0,0.95022694]
[1643693479495,0.00151875,38549.0,38547.0,0.95022694]
[1643693480299,0.03934201,38550.0,38547.0,0.95022694]
[1643693480500,0.00151871,38549.0,38547.0,0.76345833]
[1643693480697,0.00151871,38549.0,38547.0,0.89840647]
[1643693480902,0.00151871,38549.0,38547.0,0.72880142]
[1643693481599,0.03934201,38550.0,38547.0,0.72880142]
[1643693481800,0.00151871,38549.0,38547.0,0.72880142]
[1643693482642,0.03934201,38550.0,38547.0,0.72880142]
[1643693483041,0.00151871,38549.0,38547.0,0.72880142]
[1643693483242,0.00151871,38549.0,38547.0,0.89840647]
[1643693483841,0.03934201,38550.0,38547.0,0.89840647]
[1643693484242,0.00151872,38549.0,38547.0,0.89840647]
[1643693484644,0.00151872,38549.0,38547.0,0.71155833]
[1643693485044,0.00151872,38549.0,38547.0,0.54195328]
[1643693485545,0.00151872,38549.0,38547.0,0.19272728]
[1643693486390,0.2123937,38553.0,38547.0,0.19272728]
[1643693486591,0.0013759,38549.0,38547.0,0.19272728]
[1643693487493,0.2123937,38553.0,38547.0,0.19272728]
[1643693487892,0.0013759,38549.0,38547.0,0.19272728]
[1643693488291,0.68,38548.0,38547.0,0.19272728]
[1643693488499,0.33,38548.0,38547.0,0.19272728]
[1643693491649,0.32988727,38548.0,38547.0,0.19272728]
[1643693496097,0.59331519,38548.0,38547.0,0.19272728]
[1643693498244,0.32988727,38548.0,38547.0,0.19272728]
[1643693498944,0.32988727,38548.0,38547.0,0.37970725]
[1643693499145,0.32988727,38548.0,38547.0,0.3796055]
[1643693499344,0.32988727,38548.0,38547.0,0.38338456]
[1643693499745,0.32988727,38548.0,38547.0,0.73261056]
[1643693500544,0.32988727,38548.0,38547.0,0.54195328]
[1643693501089,0.32988727,38548.0,38547.0,1.13155833]
[1643693507546,0.32988727,38548.0,38547.0,1.23345833]
[1643693508147,0.00606991,38558.0,38547.0,1.23345833]
[1643693508148,0.7943,38565.0,38559.0,0.34362414]
[1643693508405,0.174833,38569.0,38555.0,0.0519]
[1643693508406,0.00606991,38558.0,38555.0,0.0519]
[1643693508602,0.00606991,38558.0,38556.0,0.349226]
[1643693508803,0.00606991,38558.0,38557.0,0.0519]
[1643693509103,0.00606991,38558.0,38557.0,0.58614014]
[1643693509301,0.00606991,38558.0,38557.0,0.96614886]
[1643693509502,0.00606991,38558.0,38557.0,1.31537486]
[1643693509803,0.01996175,38560.0,38557.0,1.37371392]
[1643693509804,0.00151862,38559.0,38557.0,1.37371392]
[1643693510103,0.00151862,38559.0,38558.0,0.55326673]
[1643693510304,0.00151862,38559.0,38558.0,0.60516673]
[1643693510502,0.01996175,38560.0,38558.0,0.60516673]
[1643693510804,0.02148035,38560.0,38558.0,0.60516673]
[1643693511903,0.01996175,38560.0,38558.0,0.60516673]
[1643693512944,0.2687183,38567.0,38558.0,0.60516673]
[1643693513142,0.00151837,38561.0,38558.0,0.25594073]
[1643693513344,0.00151837,38561.0,38559.0,0.349226]
[1643693513543,0.00151837,38561.0,38560.0,0.0519]
[1643693513743,0.00151837,38561.0,38560.0,0.401126]
[1643693513943,0.00151837,38561.0,38560.0,0.59385328]
[1643693514345,0.2687183,38567.0,38560.0,0.59385328]
[1643693514547,0.00151835,38562.0,38561.0,0.064825]
[1643693514745,0.00151835,38562.0,38561.0,0.116725]
[1643693515803,0.00151833,38563.0,38561.0,0.116725]
[1643693516497,0.2687183,38567.0,38561.0,0.116725]
[1643693516897,0.00137553,38564.0,38561.0,0.116725]
[1643693517900,0.2687183,38567.0,38561.0,0.116725]
[1643693517901,0.2687183,38567.0,38561.0,0.0519]
[1643693518099,0.00137552,38564.0,38561.0,0.0519]
[1643693519202,0.2687183,38567.0,38562.0,0.09886364]
[1643693519399,0.00137552,38564.0,38563.0,0.0519]
[1643693519642,0.00137552,38564.0,38563.0,0.116723]
[1643693520243,0.01,38569.0,38563.0,0.116723]
[1643693520645,0.00139151,38565.0,38563.0,0.116723]
[1643693521444,0.25799577,38569.0,38563.0,0.116723]
[1643693521748,0.0013915,38566.0,38563.0,0.116723]
[1643693521946,0.0013915,38566.0,38563.0,0.0519]
[1643693522745,0.25799577,38569.0,38563.0,0.0519]
[1643693522946,0.00139149,38566.0,38564.0,0.064821]
[1643693523992,0.01,38569.0,38567.0,0.08071355]
[1643693524892,0.005,38569.0,38567.0,0.08071355]
[1643693528348,0.005,38569.0,38568.0,0.0519]
[1643693528749,0.005,38569.0,38568.0,0.465932]
[1643693529348,0.005,38569.0,38568.0,0.79439797]
[1643693529949,0.005,38569.0,38568.0,0.98712525]
[1643693532797,0.355,38569.0,38568.0,0.65865928]
[1643693532998,0.005,38569.0,38568.0,0.24462728]
[1643693533196,0.005,38569.0,38568.0,0.19272728]
[1643693533795,0.29017731,38569.0,38568.0,0.19272728]
[1643693536254,0.58268056,38569.0,38568.0,0.19272728]
[1643693536455,0.63458056,38569.0,38568.0,0.19272728]
[1643693536653,1.03380656,38569.0,38568.0,0.19272728]
[1643693536850,0.85,38568.0,38556.0,0.0403746]
[1643693537052,0.36530964,38567.0,38556.0,0.02039288]
[1643693537250,0.33160717,38558.0,38556.0,0.02039288]
[1643693537654,1.11530964,38557.0,38556.0,0.02039288]
[1643693537854,1.46453564,38557.0,38556.0,0.02039288]
[1643693538051,1.251126,38557.0,38556.0,0.02039288]
[1643693538697,0.401126,38557.0,38556.0,0.02039288]
[1643693539096,0.10340038,38552.0,38544.0,0.32505785]
[1643693539297,0.10340038,38552.0,38544.0,0.23049504]
[1643693539698,0.10340038,38552.0,38544.0,0.0199912]
[1643693539898,0.064854,38551.0,38544.0,0.0199912]
[1643693540103,0.30224721,38545.0,38544.0,0.0199912]
[1643693540304,0.392998,38545.0,38544.0,0.0199912]
[1643693541303,0.30224721,38545.0,38544.0,0.0199912]
[1643693541502,0.30224721,38545.0,38544.0,0.3692172]
[1643693542347,0.30224721,38545.0,38544.0,0.349226]
[1643693542548,0.30224721,38545.0,38541.0,0.064859]
[1643693542751,0.30224721,38545.0,38542.0,0.349226]
[1643693543950,0.30376874,38545.0,38542.0,0.349226]
[1643693544751,0.30224721,38545.0,38542.0,0.349226]
[1643693544951,0.27202249,38545.0,38542.0,0.349226]
[1643693545151,0.27354402,38545.0,38542.0,0.349226]
[1643693545804,0.27354402,38545.0,38542.0,0.44690317]
[1643693545805,0.00152153,38545.0,38542.0,0.44690317]
[1643693545995,0.22427883,38548.0,38543.0,0.064854]
[1643693546196,0.22427883,38548.0,38544.0,0.349226]
[1643693546396,0.00151728,38545.0,38544.0,0.349226]
[1643693546894,0.23602442,38545.0,38544.0,0.349226]
[1643693547294,0.23450714,38545.0,38544.0,0.349226]
[1643693548698,0.00142592,38546.0,38544.0,0.349226]
[1643693549548,0.064856,38547.0,38544.0,0.349226]
[1643693549950,0.06628287,38547.0,38543.0,0.064854]
[1643693550861,0.064856,38547.0,38543.0,0.064854]
[1643693551053,0.06628287,38547.0,38543.0,0.064854]
[1643693552053,0.064856,38547.0,38543.0,0.064854]
[1643693552254,0.06637421,38547.0,38543.0,0.064854]
[1643693553058,0.06637421,38547.0,38544.0,0.64625592]
[1643693553320,0.00151821,38547.0,38545.0,0.17571442]
[1643693553512,0.00151821,38547.0,38546.0,0.79587973]
[1643693553713,0.001518,38547.0,38546.0,0.79587973]
[1643693553913,0.001518,38547.0,38546.0,0.82313604]
[1643693554312,0.001518,38547.0,38546.0,0.414076]
[1643693554914,0.00151798,38548.0,38546.0,0.414076]
[1643693555314,0.00151798,38548.0,38546.0,0.06485]
[1643693555721,0.1357604,38558.0,38547.0,0.349226]
[1643693555722,0.117,38557.0,38547.0,0.349226]
[1643693555917,0.117,38557.0,38550.0,0.06484]
[1643693556118,0.13518646,38558.0,38550.0,0.06484]
[1643693556318,0.00549646,38558.0,38550.0,0.06484]
[1643693556717,0.064841,38557.0,38550.0,0.06484]
[1643693557449,0.00137438,38556.0,38550.0,0.06484]
[1643693557648,0.00137438,38556.0,38550.0,0.15845335]
[1643693558252,0.064841,38557.0,38550.0,0.15845335]
[1643693558450,0.00137439,38555.0,38550.0,0.15845335]
[1643693558649,0.00137439,38555.0,38550.0,0.50262429]
[1643693559451,0.064841,38557.0,38550.0,0.50262429]
[1643693559651,0.00139133,38554.0,38550.0,0.50262429]
[1643693559855,0.00139133,38554.0,38551.0,0.56166786]
[1643693560256,0.00139133,38554.0,38551.0,0.62001629]
[1643693560454,0.00139133,38554.0,38552.0,0.349226]
[1643693560653,0.00556448,38560.0,38554.0,0.064829]
[1643693561100,0.00556448,38560.0,38553.0,0.64223289]
[1643693561101,0.00596003,38560.0,38558.0,0.08588195]
[1643693561699,0.27108798,38564.0,38558.0,0.08588195]
[1643693561900,0.08369039,38566.0,38558.0,0.08588195]
[1643693562099,0.00149013,38561.0,38559.0,0.18621856]
[1643693562601,0.00149013,38561.0,38560.0,0.349226]
[1643693562801,0.00149013,38561.0,38559.0,0.25143854]
[1643693563004,0.00149013,38561.0,38560.0,0.18802501]
[1643693563504,0.00149011,38562.0,38560.0,0.18802501]
[1643693564103,0.00149011,38562.0,38561.0,0.349226]
[1643693564303,0.38372013,38573.0,38563.0,0.064816]
[1643693564552,0.38372013,38573.0,38562.0,0.129631]
[1643693564553,0.01051066,38569.0,38564.0,0.2212936]
[1643693565452,0.005,38569.0,38565.0,0.15385653]
[1643693565853,0.00137779,38568.0,38565.0,0.15385653]
[1643693566467,0.00127492,38568.0,38565.0,0.15385653]
[1643693566652,0.005,38569.0,38565.0,0.15385653]
[1643693568307,0.00651782,38569.0,38565.0,0.15385653]
[1643693569001,0.005,38569.0,38565.0,0.15385653]
[1643693569202,0.005,38569.0,38565.0,0.24480965]
[1643693569401,0.00651782,38569.0,38565.0,0.15385653]
[1643693570206,0.005,38569.0,38565.0,0.15385653]
[1643693570402,0.005,38569.0,38566.0,0.40755295]
[1643693570604,0.005,38569.0,38567.0,0.129616]
[1643693570605,0.00651782,38569.0,38567.0,0.129616]
[1643693570804,0.00651782,38569.0,38568.0,0.349226]
[1643693571004,0.00651782,38569.0,38568.0,0.34819839]
[1643693571407,0.005,38569.0,38568.0,0.34819839]
[1643693571606,0.005,38569.0,38567.0,0.129616]
[1643693572245,0.005,38569.0,38567.0,0.22668425]
[1643693572846,0.005,38569.0,38568.0,0.0996392]
[1643693573045,0.005,38569.0,38567.0,0.129616]
[1643693573450,0.005,38569.0,38568.0,0.19839873]
[1643693573848,0.005,38569.0,38567.0,0.129616]
[1643693574052,0.005,38569.0,38567.0,0.32008752]
[1643693574248,0.005,38569.0,38568.0,0.18539057]
[1643693574648,0.005,38569.0,38568.0,0.53449057]
[1643693575051,0.005,38569.0,38568.0,0.63564317]
[1643693575252,0.005,38569.0,38568.0,0.53449057]
[1643693578601,0.005,38569.0,38568.0,0.62061055]
[1643693579683,0.00151775,38570.0,38568.0,0.62061055]
[1643693579884,0.4114582,38580.0,38569.0,0.61850988]
[1643693580085,0.4114582,38580.0,38572.0,0.42758513]
[1643693580284,0.01990159,38581.0,38573.0,0.18577837]
[1643693580285,0.00607009,38576.0,38573.0,0.18577837]